Cogmind - Beta 16 @@@ ROGUE MODE // 2025.10.25 @ 20:03:30 Player: Mxykikker Result: Self-destructed Performance ------------- Evolutions (2) 1000 Regions Visited (3) 600 Robots Destroyed (35) 175 Value Destroyed (1154) 1154 Prototype IDs (1) 20 Alien Tech Used (0) 0 Bonus (0) 0 TOTAL SCORE: 2949 Bonus ------- None Cogmind --------- Core Integrity 312/550 Matter 176/300 Energy 43/100 System Corruption 0% Temperature Warm (174) Movement Core (150) Ox2 Location -8/Materials Parts ------- > --- POWER (2) -------- (None) > --- PROPULSION (3) --- (None) > --- UTILITY (4) ------ Improved Signal Interpreter > --- WEAPON (2) ------- Gatling Laser Assault Cannon > --- INVENTORY (5) ---- Gatling Laser Gatling Laser Mining Laser Peak State ------------ > --- POWER ------------ Makeshift Power Source Makeshift Power Source > --- PROPULSION ------- Spiked Treads Spiked Treads > --- UTILITY ---------- Improved Sensor Array Improved Signal Interpreter Scrap Shield > --- WEAPON ----------- Gatling Laser Gatling Laser > --- INVENTORY -------- Subdweller Monowheel Gatling Laser Gatling Laser Mining Laser [Rating: 31] Favorites ----------- Power Makeshift Power Source Engine Makeshift Power Source Propulsion Spiked Treads Treads Spiked Treads Wheel Compact Wheel Utility Scrap Shield Device Improved Sensor Array Storage Medium Storage Unit Processor Improved Signal Interpreter Protection Scrap Shield Weapon Small Laser Energy Gun Small Laser Energy Cannon Beam Cannon Ballistic Gun Subdweller Machine Gun Ballistic Cannon Assault Cannon Launcher Subdweller Shrapnel Launcher Special Weapon Mining Laser Build | -11 -10 -10 -8 ------- Run | Yrd Mat Sub Mat Slots Evolved 4 | . . . 4 Power 1 | . . . 1 Propulsion 1 | . . . 1 Utility 2 | . . . 2 Weapon . | . . . . Parts Attached 34 | 7 8 8 11 Power 4 | 2 . 1 1 Engine 4 | 2 . 1 1 Core . | . . . . Reactor . | . . . . Propulsion 7 | 2 3 2 . Treads 4 | . 2 2 . Leg . | . . . . Wheel 3 | 2 1 . . Hover . | . . . . Flight . | . . . . Utility 7 | 1 2 1 3 Device 1 | . . . 1 Storage 2 | 1 1 . . Processor 1 | . . . 1 Hackware . | . . . . Protection 3 | . 1 1 1 Artifact . | . . . . Weapon 16 | 2 3 4 7 Energy Gun 7 | 1 1 . 5 Energy Cannon 1 | . . 1 . Ballistic Gun 3 | 1 . 2 . Ballistic Cannon 2 | . . . 2 Launcher 1 | . . 1 . Special Weapon 2 | . 2 . . Impact Weapon . | . . . . Slashing Weapon . | . . . . Piercing Weapon . | . . . . Special Melee Weapon . | . . . . Unidentified Prototypes 1 | . . . 1 Parts Lost 12 | . 3 . 9 Power 2 | . . . 2 Propulsion 3 | . 1 . 2 Utility 2 | . . . 2 Weapon 5 | . 2 . 3 Highest Loss Streak 7 | . 1 . 7 To Critical Strikes . | . . . . Average Backups 3 | 1 2 3 4 Power . | . . . . Propulsion . | . 1 . . Utility . | . . . . Weapon 2 | . . 2 3 Tool/Special . | . . . . Unused Backups 2 | . . 1 1 Power . | . . . . Propulsion 1 | . . . 1 Utility . | . . . . Weapon 1 | . . 1 . Tool/Special . | . . . . Average Slot Usage (%) 85 | . 96 86 74 Engine 14 | . 14 14 16 Treads 21 | . 14 28 15 Wheel 2 | . 12 . . Device 1 | . . . 7 Storage 4 | . 14 1 . Processor 1 | . . . 7 Protection 12 | . 13 13 8 Energy Gun 12 | . 18 9 14 Energy Cannon 2 | . . 5 . Ballistic Gun 7 | . 6 10 . Special Weapon 1 | . . 1 . Peak Build Rating 31 | 6 7 17 31 Average Rating 14 | 4 6 12 27 On Entrance 7 | . 6 7 16 Avg Prop Armor Cover (%) 2 | . 2 . . Naked Turns . | . . . . Heaviest Build 39 | 13 21 32 39 Greatest Support 40 | 32 40 40 40 Greatest Overweight (x) 3 | . 1 . 3 Average Overweight (x) . | . . . . Largest Inventory Capacity 10 | 8 10 10 5 Average Capacity 6 | 6 9 5 5 Most Carried 5 | 3 4 5 5 Average Carried 3 | 1 2 3 4 Final Capacity 10 | 8 10 5 5 Final Carried 3 | 2 2 3 3 Class Distribution -------------------- 66% | Mutant 33% | Derelict-Mutant Dominant Class ---------------- Mutant | -10/Materials Mutant | -10/Subcaves Derelict-Mutant | -8/Materials Resources | -11 -10 -10 -8 ----------- Run | Yrd Mat Sub Mat Matter Collected 1006 | 222 216 368 200 Remotely . | . . . . Salvage Created 1333 | . 249 652 432 Parts 89 | . 19 48 22 Haulers Intercepted . | . . . . Recyclers Shooed . | . . . . Parts Field Recycled . | . . . . Retrieved Matter . | . . . . Parts Self-Destructed 12 | . . 12 . Prevented . | . . . . Parts Restored . | . . . . Kills | -11 -10 -10 -8 ------- Run | Yrd Mat Sub Mat Combat Hostiles Destroyed 32 | . 9 15 8 Guns 24 | . 9 10 5 Cannons 5 | . . 3 2 AOE 2 | . . 2 . Classes Destroyed 7 | . 2 1 4 Worker 1 | . . . 1 Recycler 1 | . . . 1 Watcher 1 | . . . 1 Swarmer 7 | . 3 4 . Grunt 12 | . 6 . 6 Sentry 2 | . . . 2 Subdweller 11 | . . 11 . Best Kill Streak 4 | . 4 4 3 Combat Bots Only 4 | . 4 4 2 Max Kills in Single Turn 2 | . 1 2 2 Gunslinging . | . . . . Exploded 1 | . . 1 . Melee . | . . . . Uniques/NPCs Destroyed . | . . . . Combat | -11 -10 -10 -8 -------- Run | Yrd Mat Sub Mat Hostile Shots Fired 258 | . 69 94 95 Missed 75 | . 17 31 27 Hits 183 | . 52 63 68 Projectile 183 | . 52 63 68 AOE 1 | . . 1 . Critical Strikes 4 | . . . 4 Damage Taken 2789 | . 589 1086 1114 Core 455 | . 92 125 238 Absorbed by Shields . | . . . . Regen/Repaired (Parts) 83 | . 83 . . Core Remaining (%) 56 | 100 . 13 . Volleys Fired 158 | . 44 79 35 Largest 2 | . 2 2 2 Hottest 160 | . 140 130 160 Shots Fired 265 | . 62 144 59 Gun 193 | . 54 104 35 Cannon 48 | . . 26 22 Launcher 5 | . . 5 . Special 19 | . 8 9 2 Kinetic 88 | . 17 49 22 Thermal 177 | . 45 95 37 Explosive . | . . . . Electromagnetic . | . . . . Robot Hit Streak 24 | . 7 24 11 Robot Miss Streak 8 | . 4 7 8 Penetration Max . | . . . . Secondary Targets 2 | . 2 . . Max Gunslinging Chain 1 | . 1 . . Shots Hit Robots 171 | . 32 97 42 Core Hits 83 | . 16 34 33 Critical Kills . | . . . . Critical Parts Destroyed . | . . . . Critical Strikes . | . . . . Melee Attacks . | . . . . Impact . | . . . . Slashing . | . . . . Piercing . | . . . . Sneak Attacks . | . . . . Combat Hostiles . | . . . . Follow-up Attacks . | . . . . Damage Inflicted 2950 | . 408 1580 962 Guns 2070 | . 347 1127 596 Cannons 627 | . . 261 366 Explosions 192 | . . 192 . Melee . | . . . . Ramming 13 | . 13 . . Kinetic 1227 | . 81 780 366 Thermal 1710 | . 314 800 596 Explosive . | . . . . Electromagnetic . | . . . . Impact . | . . . . Slashing . | . . . . Piercing . | . . . . Highest Corruption . | . . . . Average Corruption . | . . . . Corruption Purged . | . . . . Corruption Blocked . | . . . . Overload Shots . | . . . . Overflow Damage 15 | . . 15 . Projectiles 15 | . . 15 . Explosions . | . . . . Melee . | . . . . Knockbacks 14 | . . . 14 Impact . | . . . . Kinetic 14 | . . . 14 Secondary . | . . . . Self-Inflicted Damage 22 | . . 22 . Shots 1 | . . 1 . Rammed 1 | . 1 . . Targets Rammed 1 | . 1 . . Kicked . | . . . . Crushed . | . . . . Highest Temperature 524 | . 338 48 524 Average Temperature 139 | . 108 18 180 Received Heat Transfer 1077 | . 288 150 639 Effects 15 | . 1 . 14 Shutdowns 6 | . . . 6 Interference 2 | . . . 2 Matter Decay 2 | . 1 . 1 Short Circuit 1 | . . . 1 Damage (major) 4 | . . . 4 Siege Activations . | . . . . Martial Activations . | . . . . Shielding Activations . | . . . . Robots Disrupted . | . . . . Combat Hostiles . | . . . . Robots Corrupted . | . . . . Combat Hostiles . | . . . . Parts Fried . | . . . . Impact Corruptions . | . . . . Robots Melted 1 | . . . 1 Combat Hostiles 1 | . . . 1 Parts Melted 8 | . 1 . 7 Heat Transferred 3815 | . 700 1780 1335 Parts Sabotaged . | . . . . Parts Stolen . | . . . . Parts Stripped . | . . . . Power Chain Reactions . | . . . . Alert | -11 -10 -10 -8 ------- Run | Yrd Mat Sub Mat Maximum Alert Level . | . . . . Low Security (%) 100 | 100 100 . 100 Level 1 . | . . . . Level 2 . | . . . . Level 3 . | . . . . Level 4 . | . . . . Level 5 . | . . . . High Security . | . . . . Max Security . | . . . . Peak Influence 126 | . 126 . 80 Initial 80 | . . . 80 Average 39 | . 61 . 22 Influence Increases 846 | . 343 230 273 Destroy 0b10 Robot/C 420 | . 180 80 160 Destroy 0b10 Robot/NC 15 | . . . 15 Destroy Leader 72 | . 40 . 32 Successful Hack 6 | . 3 . 3 Select Force Hacks 30 | . . . 30 Disable Machine 30 | . 15 . 15 Destroy Structure 3 | . . . 3 Lose Combat Pursuer 270 | . 105 150 15 Influence Decreases 795 | . 326 92 377 Entered New Map 84 | . . 9 75 Time Decay 638 | . 296 83 259 Lost Part 73 | . 30 . 43 Squads Dispatched 4 | . 2 . 2 Investigation 2 | . 1 . 1 Extermination . | . . . . Reinforcement 2 | . 1 . 1 Assault . | . . . . Garrison . | . . . . Intercept . | . . . . Searches Triggered . | . . . . Construction Impeded 1 | . . . 1 Haulers Reinforced . | . . . . Active Scanning Responses . | . . . . Cargo Convoy Interrupts . | . . . . Stealth | -11 -10 -10 -8 --------- Run | Yrd Mat Sub Mat Distress Signals 4 | . 4 . . Communications Jammed . | . . . . Distress Signals . | . . . . Times Spotted 57 | . 24 19 14 Peak Tracking Total 7 | . 7 4 4 Tactical Retreats 6 | . 2 3 1 Traps | -11 -10 -10 -8 ------- Run | Yrd Mat Sub Mat Traps Triggered 3 | . 1 2 . Indirectly . | . . . . Trap Hack Attempts . | . . . . Triggered . | . . . . Disarmed . | . . . . Reprogrammed . | . . . . Reused . | . . . . Traps Extracted . | . . . . Installed . | . . . . Triggered . | . . . . Machines | -11 -10 -10 -8 ---------- Run | Yrd Mat Sub Mat Machines Disabled 2 | . 1 . 1 Max in Single Turn 1 | . 1 . 1 Machines Repaired . | . . . . Machines Dismantled . | . . . . Machines Sabotaged . | . . . . Overloaded Fab Kills . | . . . . Hacking | -11 -10 -10 -8 --------- Run | Yrd Mat Sub Mat Machines Accessed 7 | . 2 . 5 Terminals 4 | . 1 . 3 Fabricators . | . . . . Repair Stations 1 | . 1 . . Recycling Units 1 | . . . 1 Scanalyzers 1 | . . . 1 Garrison Access . | . . . . Total Hacks 23 | . 4 . 19 Successful 11 | . 2 . 9 Failed 12 | . 2 . 10 Catastrophic 2 | . . . 2 Database Lockouts . | . . . . Manual 10 | . . . 10 Terminals 13 | . 2 . 11 Fabricators . | . . . . Repair Stations 2 | . 2 . . Recycling Units 2 | . . . 2 Scanalyzers 6 | . . . 6 Garrison Access . | . . . . Terminal Hacks 1 | . . . 1 Locate Traps 1 | . . . 1 Fabricator Hacks . | . . . . Repair Station Hacks 2 | . 2 . . Scan Component 1 | . 1 . . Repair 1 | . 1 . . Recycling Unit Hacks . | . . . . Scanalyzer 5 | . . . 5 Insert Component 2 | . . . 2 Analyze 2 | . . . 2 Retrieve Study 1 | . . . 1 Garrison Access Hacks . | . . . . Unauthorized Hacks 3 | . . . 3 Terminals 2 | . . . 2 Botnet 2 | . . . 2 Fabricators . | . . . . Repair Stations . | . . . . Recycling Units 1 | . . . 1 Tunnel 1 | . . . 1 Scanalyzers . | . . . . Garrison Access . | . . . . Data Cores Recovered . | . . . . Used . | . . . . Hacking Detections 5 | . 1 . 4 Full Trace Events 1 | . . . 1 Feedback Events . | . . . . Feedback Blocked . | . . . . Robot Schematics Acquired . | . . . . Robots Built . | . . . . Authchips . | . . . . Time . | . . . . Total Robot Build Rating . | . . . . Part Schematics Acquired 2 | . . . 2 Parts Built . | . . . . Authchips . | . . . . Time . | . . . . Total Part Build Rating . | . . . . Part Studies Acquired 1 | . . . 1 Parts Repaired 1 | . 1 . . Time 26 | . 26 . . Parts Recycled . | . . . . Recycled Matter . | . . . . Retrieved Matter . | . . . . Retrieved Components . | . . . . Parts Scanalyzed 2 | . . . 2 Part Schematics Acquired 2 | . . . 2 Parts Damaged . | . . . . Bothacking | -11 -10 -10 -8 ------------ Run | Yrd Mat Sub Mat Used RIF Installer . | . . . . Robots Hacked . | . . . . Non-combat . | . . . . Combat . | . . . . Robot Hacks Applied . | . . . . Relay Couplers Released . | . . . . Fabnet Peak Effective % . | . . . . Robots Rewired . | . . . . Allies Hacked . | . . . . Hacks Repelled . | . . . . Allies | -11 -10 -10 -8 -------- Run | Yrd Mat Sub Mat Total Allies . | . . . . Largest Group . | . . . . Highest-Rated Group . | . . . . Highest-Rated Ally . | . . . . Total Orders . | . . . . Ally Attacks . | . . . . Total Damage . | . . . . Kills . | . . . . Allies Corrupted . | . . . . Allies Melted . | . . . . Intel | -11 -10 -10 -8 ------- Run | Yrd Mat Sub Mat Active Infowar (turns) 570 | . . . 570 Sensors 570 | . . . 570 Robot Analysis Total . | . . . . Derelict Logs Recovered 1 | . . 1 . Drone Launches . | . . . . Drone Recoveries . | . . . . Exploration | -11 -10 -10 -8 ------------- Run | Yrd Mat Sub Mat Turns Passed 3172 | 64 720 1600 788 Spaces Moved 1614 | 48 381 811 374 Core 14 | 1 . . 13 Treads 1354 | . 182 811 361 Legs . | . . . . Wheels 246 | 47 199 . . Hover . | . . . . Flight . | . . . . Fastest Speed 50 | 50 100 160 100 Average Speed 153 | 98 140 160 159 Slowest Speed 260 | 100 240 160 260 Overloaded Moves . | . . . . Propulsion Burnouts . | . . . . Robots Hopped . | . . . . Potential Cave-ins . | . . . . Cave-ins Triggered . | . . . . Exploration Rate (%) 31 | 4 42 51 28 Regions Visited 3 Branch Regions 1 Pre-discovered Areas 1 | . . . 1 Known Exits Taken . | . . . . Unknown Exits Taken 3 | 1 1 1 . Scrap Searched . | . . . . Spaces Dug 2 | . 1 . 1 Terrain Destroyed 57 | . 1 53 3 Melee . | . . . . Projectile 4 | . 1 . 3 AOE 53 | . . 53 . Terrain Rammed . | . . . . Walls Destroyed . | . . . . Machines Disabled . | . . . . Actions | -11 -10 -10 -8 --------- Run | Yrd Mat Sub Mat Total 1996 | 64 484 955 493 Wait 96 | . 40 8 48 Move 1611 | 47 380 810 374 Hop . | . . . . Pick Up 39 | 9 7 13 10 Fast Attach 1 | . . 1 . Attach 22 | 6 5 3 8 Detach 3 | . . 1 2 Swap 27 | 1 5 9 12 Drop 21 | 1 2 14 4 Fire 158 | . 44 79 35 Melee . | . . . . Ram . | . . . . Kick . | . . . . Crush 1 | . 1 . . Escape Stasis . | . . . . Rewire . | . . . . Trap . | . . . . Miscellaneous 17 | . . 17 . Route ------- -11/Scrapyard -10/Materials (discovered 3 exits: [*Mat] / [*Min] / [*Sub]) -10/Subcaves (discovered 2 exits: *Mat / [*Rec]) -8/Materials (discovered 1 exit: *Fac) History --------- Turn | Location | Event 7 | -11/Scrapyard | Discovered new exit (range 16) 65 | -11/Scrapyard | Entered Materials 224 | -10/Materials | Discovered new exit (range 4) 306 | -10/Materials | Discovered new exit (range 13) 311 | -10/Materials | Build established: Mutant 687 | -10/Materials | Repaired Lgt. Armor Plating 779 | -10/Materials | Discovered new exit (range 3) 785 | -10/Materials | Entered Subcaves 838 | -10/Subcaves | Learned Materials terminal intel 1074 | -10/Subcaves | A swath of the cavern ceiling suddenly collapsed 1190 | -10/Subcaves | Ambushed by Subdweller buried in earth 1554 | -10/Subcaves | Core integrity fell below 50% 1585 | -10/Subcaves | Discovered new exit (range 14) 1591 | -10/Subcaves | Shifting Twisted Machinery released Piercing Trap 1596 | -10/Subcaves | Shifting Twisted Machinery released Mak. Power Source 1722 | -10/Subcaves | Shifting Twisted Machinery released Spk. Treads 1742 | -10/Subcaves | Shifting Twisted Machinery released Flamer 2063 | -10/Subcaves | Discovered new exit (range 10) 2160 | -10/Subcaves | Core integrity fell below 20% 2298 | -10/Subcaves | Build established: Derelict-Mutant 2385 | -10/Subcaves | Entered Materials 2385 | -8/Materials | Evolved 4 slots: Power x1, Propulsion x1, Utility x2 2386 | -8/Materials | Loaded intel: 12 terminal locations 2831 | -8/Materials | Discovered new exit (range 3) 2832 | -8/Materials | Identified exit to Factory 3173 | -8/Materials | Self-destructed Last Messages --------------- 03120_ Overheating: Short circuit. 03124_ Acquired Assault Cannon. 03131_ Imp. Medium Laser destroyed. 03132_ K-01 Serf collects debris. 03134_ G-47 Trooper destroyed. 03135_ K-01 Serf collects debris. 03138_ G-50 Soldier knocked back. 03139_ K-01 Serf collects debris. 03140_ G-50 Soldier knocked back. 03140_ U-05 Engineer builds a Wall. 03143_ K-01 Serf collects debris. 03149_ G-50 Soldier knocked back. 03149_ ALERT: Construction progress impeded, dispatching reinforcements to local area. 03152_ K-01 Serf collects debris. 03152_ Critical hit (Burn: +37). 03154_ Imp. Sensor Array destroyed. 03155_ G-50 Soldier destroyed. 03155_ K-01 Serf destroyed. 03165_ G-47 Trooper destroyed. Map ----- +----------------------------------------------------+ | ???????# ?????????????????????????????????????? | | ???????# ?????????????????????????????????????? | | ???????# ?????????????????????????????????????? | | ???????# #????????????????????????????????????? | | ???????# #????????????????????????????????????? | | ???????# #????????????????????????????????????? | | ???????+ #????????????????????????????????????? | | ???????# #????????????????????????????????????? | | ???????# #????????????????????????????????????? | | ???????# #????????????????????????????????????? | | ???????# #????????????? ??????????????????????? | | ######## #####????????? ??????????????????????? | | # # ## ##??????? ??????????????????????? | | # # # #??????? ??????????????????????? | | # # #? ##?????? ??????????????????????? | | # # #?? #?????? ???????????????"T"????? | | # # ##### ########/######+###????????????? | | # !#[ *! a ![ t ????????????? | | # +% !%* %%!! g ???????????? | | # =*# ]%=^ %^[!! gg ????????????? | | # =%### #### =%%^ #########??????????????? | | # !#?# #?## %^ # #??????????????? | | # #?# #??# ^^ =%* # ] " #??????????????? | | # #?# #??# =%= # """#??????????????? | | # #?# #??# *= # """#??????????????? | | ########?# #??# @/ """#??????????????? | | ?????????# #??# # "" #??????????????? | | ?????????# #??############ """#??????????????? | | ?????????# #?????????????# ""#??????????????? | | ????????## ##????????????# [ """#??????????????? | | ????????# ###??????????# " #?????????#+#??? | | ????????# +??????????# #??######## #??? | | ????????# ###??????????#########??# """ # #??? | | ????????# #???????????????????????# "Y" # #??? | | ???????## ##??????????????????????# " " # #??? | | ???????# ! #######+######?????????# # #??? | | ???????# #????????##]] ! # #### | | ???????# T #????????#%]] # # | | ???????# #????????#####+### # | | ???????# * ###### ### #???????????# ## # | | ???????############+### #??""" ?????# T + | | ?????????# ! # # "" ?????# #### | | ?????????# # / """ ?????## ##??# | | ?????????# + #????????????# #???# | | ?????????# # #?????????#### ##### ! | | ?????????# [ # #?????????# + | | ?????################## #?????????# ######## | | ?????# ######## #?????????# #??????# | | ?????# "T" # # #?????????# #??????# | | ?????# # # ########??# #??????# | +----------------------------------------------------+ Best States ------------- Heat Dissipation 31 Energy Generation 25 Energy Capacity 250 Matter Stores 300 Matter Capacity 300 Sight Range 16 Robot Scan Range 15 Terrain Scan Density 10 Armor Coverage 950 Evasion (%) 40 Recoil Reduction 2 Item Schematics ----------------- Flak Cannon | -8/Materials | Scanalyzed Gatling Laser | -8/Materials | Scanalyzed Robot Schematics ------------------ None Fabricated ------------ Nothing Repaired ---------- Lgt. Armor Plating | 7% | -10/Materials Studied --------- Flak Cannon | -8/Materials | Hacked Alien Tech Used ----------------- None Achievements -------------- Do Not Disturb Item+ Well Done Challenges ------------ None Game ------ Seed VoltaicKineticSword Manual? 0 Play Time 00:30:32 Cumulative 79.2 hours Start 2025.10.25 @ 19:31:35 End 2025.10.25 @ 20:03:30 Sessions 1 Manual Loads 0 Difficulty Rogue Special Mode None Game No. 120 Rogue 120 Adventurer 0 Explorer 0 Win Type - Total 0 Types 0/0/0/0/0/0/0/0/0/0 Lore% 25 Gallery% 30 Achievement% 20 Wizard Run 0 Options --------- Layout 1 ASCII 0 Keyboard 0 Movement Arrows Keybinds 0 Fullscreen 1 Font 24/Smallcaps Map View 50x35 Zoom Use 0% Tactical HUD 1 Map Filters NONE Filters NONE Steam 1 RUN: 09e872ce-caa3-42bd-b837-8da957300d1a